Cogmind - Beta 13 @@@ ROGUE MODE // 2024.05.21 @ 15:23:25 Player: Crackrock_Steady Result: Destroyed by S-27 Virus with Autogun Performance ------------- Evolutions (3) 1500 Regions Visited (5) 1000 Robots Destroyed (31) 155 Value Destroyed (655) 655 Prototype IDs (1) 20 Alien Tech Used (0) 0 Bonus (210) 210 TOTAL SCORE: 3540 Bonus ------- High Alert Combat Kills 10 Entered Garrisons 200 Cogmind --------- Core Integrity 0/700 Matter 281/300 Energy 99/100 System Corruption 0% Temperature Cool (0) Movement Core (50) Location -7/Garrison Parts ------- > --- POWER (1) -------- (None) > --- PROPULSION (4) --- (None) > --- UTILITY (6) ------ Signal Interpreter Hacking Suite System Shield > --- WEAPON (2) ------- (None) > --- INVENTORY (5) ---- Melee Analysis Suite Microactuators Improved Propulsion Shielding Peak State ------------ > --- POWER ------------ Light Nuclear Core > --- PROPULSION ------- VTOL Module VTOL Module VTOL Module VTOL Module > --- UTILITY ---------- Weight Redist. System Signal Interpreter Improved Propulsion Shielding Hardened Light Armor Plating Hacking Suite System Shield > --- WEAPON ----------- Axe > --- INVENTORY -------- Improved Deuterium Engine Melee Analysis Suite Microactuators Improved Propulsion Shielding [Rating: 29] Favorites ----------- Power Ion Engine Engine Ion Engine Power Core Nuclear Core Propulsion Flight Unit Treads Light Treads Flight Unit Flight Unit Utility Seismic Detector Device Seismic Detector Storage Small Storage Unit Processor Signal Interpreter Hackware System Shield Protection Hardened Light Armor Plating Weapon Light Assault Rifle Energy Gun Medium Laser Ballistic Gun Light Assault Rifle Ballistic Cannon Light Cannon Impact Weapon Flail Slashing Weapon Axe Build | -11 -10 -9 -8 -7 -7 ------- Run | Yrd Mat Mat Mat Fac Gar Slots Evolved 6 | . . 2 2 2 . Power . | . . . . . . Propulsion 2 | . . 2 . . . Utility 4 | . . . 2 2 . Weapon . | . . . . . . Parts Attached 50 | 7 2 18 9 8 6 Power 10 | 1 . 5 1 1 2 Engine 6 | 1 . 4 . . 1 Core 4 | . . 1 1 1 1 Reactor . | . . . . . . Propulsion 16 | 2 . 7 5 . 2 Treads 2 | 2 . . . . . Leg . | . . . . . . Wheel . | . . . . . . Hover . | . . . . . . Flight 14 | . . 7 5 . 2 Utility 12 | 2 . 2 2 5 1 Device 2 | 1 . 1 . . . Storage 1 | 1 . . . . . Processor 1 | . . . 1 . . Hackware 2 | . . . . 2 . Protection 6 | . . 1 1 3 1 Artifact . | . . . . . . Weapon 12 | 2 2 4 1 2 1 Energy Gun 2 | 1 . 1 . . . Energy Cannon . | . . . . . . Ballistic Gun 3 | 1 . . 1 . 1 Ballistic Cannon 3 | . 2 1 . . . Launcher . | . . . . . . Special Weapon . | . . . . . . Impact Weapon 1 | . . 1 . . . Slashing Weapon 3 | . . 1 . 2 . Piercing Weapon . | . . . . . . Special Melee Weapon . | . . . . . . Unidentified Prototypes 1 | . . 1 . . . Parts Lost 20 | . . 2 4 . 14 Power 3 | . . . . . 3 Propulsion 8 | . . 1 2 . 5 Utility 5 | . . . 1 . 4 Weapon 4 | . . 1 1 . 2 Highest Loss Streak 10 | . . 2 4 . 10 To Critical Strikes . | . . . . . . Average Slot Usage (%) 88 | . 100 91 79 77 69 Engine 7 | . 14 9 . . . Core 2 | . . 1 9 5 4 Treads 10 | . 28 . . . . Flight 17 | . . 37 30 24 17 Device 13 | . 14 20 14 7 5 Storage 5 | . 14 . . . . Processor 2 | . . . 9 7 7 Hackware 2 | . . . . 8 15 Protection 3 | . . . 4 13 10 Energy Gun 5 | . 13 1 . . . Ballistic Gun 5 | . 13 . . 3 . Ballistic Cannon 3 | . 1 13 . . . Impact Weapon 1 | . . 4 4 . . Slashing Weapon 2 | . . 1 5 3 5 Naked Turns . | . . . . . . Heaviest Build 21 | 14 17 14 15 21 17 Greatest Support 40 | 40 40 22 25 23 22 Greatest Overweight (x) 1 | . . . . 1 1 Average Overweight (x) . | . . . . . . Largest Inventory Capacity 8 | 8 8 8 5 5 5 Average Capacity 6 | 7 8 5 5 5 5 Most Carried 8 | 5 8 8 5 5 5 Average Carried 4 | 2 3 5 4 3 4 Final Capacity 8 | 8 8 5 5 5 5 Final Carried 8 | 2 8 5 5 5 3 Class Distribution -------------------- 55% | Mutant 15% | Sprinter 10% | Hacker-Sprinter 9% | Scavenger-Mutant 5% | Scavenger-Sprinter 4% | Hacker-Mutant Dominant Class ---------------- Mutant | -10/Materials Scavenger-Mutant | -9/Materials Sprinter | -8/Materials Sprinter | -7/Factory Hacker-Sprinter | -7/Garrison Resources | -11 -10 -9 -8 -7 -7 ----------- Run | Yrd Mat Mat Mat Fac Gar Matter Collected 820 | 230 67 301 57 . 165 Remotely . | . . . . . . Salvage Created 817 | 38 212 179 169 54 165 Parts 60 | 7 12 17 11 . 13 Haulers Intercepted . | . . . . . . Recyclers Shooed . | . . . . . . Parts Field Recycled . | . . . . . . Retrieved Matter . | . . . . . . Parts Self-Destructed . | . . . . . . Prevented . | . . . . . . Kills | -11 -10 -9 -8 -7 -7 ------- Run | Yrd Mat Mat Mat Fac Gar Combat Hostiles Destroyed 25 | . 6 8 6 1 4 Melee 11 | . . . 6 1 4 Guns 6 | . 6 . . . . Cannons 8 | . . 8 . . . Classes Destroyed 9 | 1 3 2 2 . 1 Worker 1 | . . 1 . . . Tunneler 2 | 2 . . . . . Recycler 1 | . . . 1 . . Watcher 2 | . 1 1 . . . Swarmer 14 | . 3 5 4 . 2 Cutter 2 | . . . 2 . . Grunt 4 | . 3 . . 1 . Sentry 3 | . . 3 . . . Hunter 2 | . . . . . 2 Best Kill Streak 8 | 2 5 8 4 1 2 Combat Bots Only 8 | . 4 8 4 1 2 Max Kills in Single Turn 1 | 1 1 1 1 1 1 Gunslinging . | . . . . . . Exploded . | . . . . . . Melee 1 | . . . 1 1 1 Uniques/NPCs Destroyed . | . . . . . . Combat | -11 -10 -9 -8 -7 -7 -------- Run | Yrd Mat Mat Mat Fac Gar Hostile Shots Fired 330 | . 39 70 40 9 172 Missed 127 | . 11 30 20 5 61 Damage Taken 2736 | . 260 422 399 59 1596 Core 998 | . 69 89 134 . 706 Absorbed by Shields 63 | . . . . . 63 Redirected to Shielding 100 | . . . . 9 91 Regen/Repaired (Parts) 43 | . . . . 43 . Core Remaining (%) 81 | 100 72 77 75 . . Volleys Fired 59 | 4 23 25 . . 7 Largest 2 | 2 2 2 . . 1 Hottest 70 | 70 70 70 . . 23 Shots Fired 105 | 8 46 44 . . 7 Gun 61 | 8 46 . . . 7 Cannon 44 | . . 44 . . . Launcher . | . . . . . . Special . | . . . . . . Kinetic 78 | 4 23 44 . . 7 Thermal 27 | 4 23 . . . . Explosive . | . . . . . . Electromagnetic . | . . . . . . Robot Hit Streak 7 | 4 7 6 . . 6 Robot Miss Streak 5 | 3 5 2 . . 1 Penetration Max . | . . . . . . Secondary Targets 3 | . 3 . . . . Max Gunslinging Chain 1 | . 1 . . . . Shots Hit Robots 92 | 5 27 30 8 5 17 Core Hits 37 | 2 11 11 6 2 5 Critical Kills . | . . . . . . Critical Parts Destroyed . | . . . . . . Critical Strikes 3 | . 1 1 . 1 . Burn 1 | . 1 . . . . Blast 1 | . . 1 . . . Sever 1 | . . . . 1 . Melee Attacks 66 | . . 24 18 7 17 Impact 18 | . . 16 2 . . Slashing 48 | . . 8 16 7 17 Piercing . | . . . . . . Sneak Attacks 4 | . . 1 1 1 1 Combat Hostiles 1 | . . . . . 1 Follow-up Attacks 1 | . . . 1 . . Damage Inflicted 2074 | 59 300 655 305 214 541 Guns 430 | 59 300 . . . 71 Cannons 496 | . . 496 . . . Explosions . | . . . . . . Melee 1148 | . . 159 305 214 470 Ramming . | . . . . . . Kinetic 674 | 20 87 496 . . 71 Thermal 252 | 39 213 . . . . Explosive . | . . . . . . Electromagnetic . | . . . . . . Impact 159 | . . 159 . . . Slashing 989 | . . . 305 214 470 Piercing . | . . . . . . Highest Corruption . | . . . . . . Average Corruption . | . . . . . . Corruption Purged . | . . . . . . Corruption Blocked . | . . . . . . Overload Shots . | . . . . . . Overflow Damage 131 | . . 47 18 53 13 Projectiles 26 | . . 26 . . . Explosions . | . . . . . . Melee 105 | . . 21 18 53 13 Knockbacks 4 | . . 4 . . . Impact . | . . . . . . Kinetic 4 | . . 4 . . . Secondary . | . . . . . . Self-Inflicted Damage . | . . . . . . Shots . | . . . . . . Rammed 1 | . . . . . 1 Targets Rammed 1 | . . . . . 1 Kicked . | . . . . . . Crushed . | . . . . . . Highest Temperature 177 | 50 158 177 . 3 34 Average Temperature 71 | 24 60 95 . 3 12 Received Heat Transfer 423 | . 72 105 . 36 210 Siege Activations . | . . . . . . Robots Corrupted . | . . . . . . Combat Hostiles . | . . . . . . Parts Fried 2 | . . 2 . . . Impact Corruptions 2 | . . 2 . . . Robots Melted . | . . . . . . Combat Hostiles . | . . . . . . Parts Melted . | . . . . . . Heat Transferred 814 | 111 703 . . . . Parts Sabotaged . | . . . . . . Parts Stolen . | . . . . . . Parts Stripped . | . . . . . . Power Chain Reactions . | . . . . . . Alert | -11 -10 -9 -8 -7 -7 ------- Run | Yrd Mat Mat Mat Fac Gar Peak Influence 539 | 10 107 533 539 335 361 Initial 245 | . 6 44 224 245 234 Average 186 | 3 31 276 393 274 284 Maximum Alert Level 2 | . . 2 2 1 1 Low Security (%) 49 | 100 100 31 . . . Level 1 38 | . . 49 34 100 100 Level 2 12 | . . 19 65 . . Level 3 . | . . . . . . Level 4 . | . . . . . . Level 5 . | . . . . . . High Security . | . . . . . . Max Security . | . . . . . . Squads Dispatched 7 | . 2 3 1 1 . Investigation 3 | . 1 1 . 1 . Extermination . | . . . . . . Reinforcement 4 | . 1 2 1 . . Assault . | . . . . . . Garrison . | . . . . . . Intercept . | . . . . . . Searches Triggered . | . . . . . . Construction Impeded . | . . . . . . Haulers Reinforced . | . . . . . . Active Scanning Responses . | . . . . . . Cargo Convoy Interrupts . | . . . . . . Stealth | -11 -10 -9 -8 -7 -7 --------- Run | Yrd Mat Mat Mat Fac Gar Distress Signals 6 | . . 3 2 1 . Communications Jammed . | . . . . . . Distress Signals . | . . . . . . Times Spotted 81 | . 10 29 18 6 18 Peak Tracking Total 12 | . 5 12 7 2 10 Tactical Retreats 11 | . . 4 4 2 1 Traps | -11 -10 -9 -8 -7 -7 ------- Run | Yrd Mat Mat Mat Fac Gar Traps Triggered 3 | . 1 1 . . 1 Indirectly . | . . . . . . Trap Hack Attempts . | . . . . . . Triggered . | . . . . . . Disarmed . | . . . . . . Reprogrammed . | . . . . . . Reused . | . . . . . . Traps Extracted . | . . . . . . Installed . | . . . . . . Triggered . | . . . . . . Machines | -11 -10 -9 -8 -7 -7 ---------- Run | Yrd Mat Mat Mat Fac Gar Machines Disabled . | . . . . . . Max in Single Turn . | . . . . . . Machines Repaired . | . . . . . . Machines Dismantled . | . . . . . . Machines Sabotaged . | . . . . . . Overloaded Fab Kills . | . . . . . . Hacking | -11 -10 -9 -8 -7 -7 --------- Run | Yrd Mat Mat Mat Fac Gar Machines Accessed 9 | . 1 3 1 2 2 Terminals 7 | . 1 3 1 . 2 Fabricators . | . . . . . . Repair Stations 1 | . . . . 1 . Recycling Units . | . . . . . . Scanalyzers . | . . . . . . Garrison Access 1 | . . . . 1 . Total Hacks 26 | . 3 9 4 5 5 Successful 12 | . 1 4 2 4 1 Failed 14 | . 2 5 2 1 4 Catastrophic 5 | . . 3 . . 2 Database Lockouts . | . . . . . . Manual 13 | . 3 5 3 . 2 Terminals 21 | . 3 9 4 . 5 Fabricators . | . . . . . . Repair Stations 4 | . . . . 4 . Recycling Units . | . . . . . . Scanalyzers . | . . . . . . Garrison Access 1 | . . . . 1 . Terminal Hacks 8 | . 1 4 2 . 1 Record 1 | . . 1 . . . Robot Analysis 3 | . 1 1 1 . . Emergency Access Points 2 | . . 1 . . 1 Terminal Index 1 | . . 1 . . . Zone Layout 1 | . . . 1 . . Fabricator Hacks . | . . . . . . Repair Station Hacks 3 | . . . . 3 . Scan Component 2 | . . . . 2 . Repair 1 | . . . . 1 . Recycling Unit Hacks . | . . . . . . Scanalyzer . | . . . . . . Garrison Access Hacks 1 | . . . . 1 . Unlock Access 1 | . . . . 1 . Unauthorized Hacks . | . . . . . . Terminals . | . . . . . . Fabricators . | . . . . . . Repair Stations . | . . . . . . Recycling Units . | . . . . . . Scanalyzers . | . . . . . . Garrison Access . | . . . . . . Data Cores Recovered . | . . . . . . Used . | . . . . . . Hacking Detections 7 | . 1 3 1 1 1 Full Trace Events 6 | . 1 2 1 1 1 Feedback Events . | . . . . . . Feedback Blocked . | . . . . . . Robot Schematics Acquired . | . . . . . . Robots Built . | . . . . . . Authchips . | . . . . . . Time . | . . . . . . Total Robot Build Rating . | . . . . . . Part Schematics Acquired . | . . . . . . Parts Built . | . . . . . . Authchips . | . . . . . . Time . | . . . . . . Total Part Build Rating . | . . . . . . Parts Repaired 1 | . . . . 1 . Time 38 | . . . . 38 . Parts Recycled . | . . . . . . Recycled Matter . | . . . . . . Retrieved Matter . | . . . . . . Retrieved Components . | . . . . . . Parts Scanalyzed . | . . . . . . Part Schematics Acquired . | . . . . . . Parts Damaged . | . . . . . . Bothacking | -11 -10 -9 -8 -7 -7 ------------ Run | Yrd Mat Mat Mat Fac Gar Used RIF Installer . | . . . . . . Robots Hacked . | . . . . . . Non-combat . | . . . . . . Combat . | . . . . . . Robot Hacks Applied . | . . . . . . Relay Couplers Released . | . . . . . . Fabnet Peak Effective % . | . . . . . . Robots Rewired . | . . . . . . Allies Hacked . | . . . . . . Hacks Repelled . | . . . . . . Allies | -11 -10 -9 -8 -7 -7 -------- Run | Yrd Mat Mat Mat Fac Gar Total Allies . | . . . . . . Largest Group . | . . . . . . Highest-Rated Group . | . . . . . . Highest-Rated Ally . | . . . . . . Total Orders . | . . . . . . Ally Attacks . | . . . . . . Total Damage . | . . . . . . Kills . | . . . . . . Allies Corrupted . | . . . . . . Allies Melted . | . . . . . . Intel | -11 -10 -9 -8 -7 -7 ------- Run | Yrd Mat Mat Mat Fac Gar Robot Analysis Total 3 | . 1 1 1 . . Derelict Logs Recovered . | . . . . . . Drone Launches . | . . . . . . Drone Recoveries . | . . . . . . Exploration | -11 -10 -9 -8 -7 -7 ------------- Run | Yrd Mat Mat Mat Fac Gar Turns Passed 1678 | 95 621 347 221 224 170 Spaces Moved 1547 | 54 172 469 265 306 281 Core 75 | 16 . . . . 59 Treads 210 | 38 172 . . . . Legs . | . . . . . . Wheels . | . . . . . . Hover . | . . . . . . Flight 1262 | . . 469 265 306 222 Fastest Speed 26 | 50 160 31 27 27 26 Average Speed 49 | 127 160 33 30 30 33 Slowest Speed 160 | 160 160 37 34 110 50 Overloaded Moves . | . . . . . . Propulsion Burnouts . | . . . . . . Robots Hopped 1 | . . . 1 . . Cave-ins Triggered . | . . . . . . Exploration Rate (%) 24 | 5 34 36 29 8 33 Regions Visited 5 Branch Regions . Pre-discovered Areas . | . . . . . . Known Exits Taken 2 | . . . 1 1 . Unknown Exits Taken 3 | 1 1 1 . . . Scrap Searched . | . . . . . . Spaces Dug 21 | . . 17 4 . . Terrain Destroyed 21 | . . 17 4 . . Melee 21 | . . 17 4 . . Projectile . | . . . . . . AOE . | . . . . . . Terrain Rammed . | . . . . . . Walls Destroyed . | . . . . . . Machines Disabled . | . . . . . . Actions | -11 -10 -9 -8 -7 -7 --------- Run | Yrd Mat Mat Mat Fac Gar Total 2255 | 73 477 580 380 425 320 Wait 479 | . 272 31 84 92 . Move 1541 | 53 171 468 262 306 281 Hop 1 | . . . 1 . . Pick Up 36 | 9 7 8 4 7 1 Fast Attach 12 | . 1 4 3 1 3 Attach 23 | 7 . 4 3 6 3 Detach 1 | . . . . 1 . Swap 15 | . 1 10 3 1 . Drop 20 | . 2 10 4 4 . Fire 59 | 4 23 25 . . 7 Melee 60 | . . 20 16 7 17 Ram 1 | . . . . . 1 Kick . | . . . . . . Crush . | . . . . . . Escape Stasis 7 | . . . . . 7 Rewire . | . . . . . . Trap . | . . . . . . Miscellaneous . | . . . . . . Route ------- -11/Scrapyard -10/Materials -9/Materials -8/Materials -7/Factory -7/Garrison History --------- Turn | Location | Event 10 | -11/Scrapyard | Discovered new exit (range 15) 96 | -11/Scrapyard | Entered Materials 310 | -10/Materials | Build established: Mutant 661 | -10/Materials | Discovered new exit (range 16) 717 | -10/Materials | Entered another Materials area 717 | -9/Materials | Evolved 2 slots: Propulsion x2 876 | -9/Materials | Destroyed 8 combat bots 1059 | -9/Materials | Discovered new exit (range 15) 1064 | -9/Materials | Entered another Materials area 1064 | -8/Materials | Evolved 2 slots: Utility x2 1239 | -8/Materials | Lost 4 parts (2n1u1w) 1281 | -8/Materials | Discovered new exit (range 11) 1285 | -8/Materials | Identified exit to Factory 1285 | -8/Materials | Entered Factory 1285 | -7/Factory | Evolved 2 slots: Utility x2 1329 | -7/Factory | Repaired Nuclear Core 1509 | -7/Factory | Identified exit to Garrison 1509 | -7/Factory | Entered Garrison 1525 | -7/Garrison | Triggered checkpoint 1589 | -7/Garrison | Triggered checkpoint 1611 | -7/Garrison | Triggered checkpoint 1615 | -7/Garrison | Lost 4 parts (1p2n1u) 1639 | -7/Garrison | Core integrity fell below 50% 1667 | -7/Garrison | Core integrity fell below 20% 1673 | -7/Garrison | Triggered checkpoint 1679 | -7/Garrison | Lost 10 parts (2p3n3u2w) 1679 | -7/Garrison | Destroyed by S-27 Virus with Autogun Last Messages --------------- 01628_ Field strength at 75. 01629_ Field strength at 65. 01630_ Field strength at 47. 01630_ VTOL Module destroyed. 01631_ Field strength at 34. 01632_ Field strength at 18. 01633_ Field strength at 5. 01633_ Stasis field depleted. 01633_ Axe destroyed. 01634_ VTOL Module destroyed. 01636_ Lgt. Nuclear Core destroyed. 01640_ Hrd. Light Armor Plating destroyed. 01641_ Imp. Deuterium Engine destroyed. 01643_ Critical hit (Burn: +37). 01644_ G-47 Trooper destroyed. 01647_ Weight Redist. System destroyed. 01648_ Autogun destroyed. 01673_ Beams of light sweep through the air. An alarm sounds. 01676_ Slammed into S-27 Virus. Map ----- +----------------------------------------------------+ | ????????????????????????????????????????### | | ??????????????????????????????????????????# | | ??????????????????????????????????????????+ | | ??????????????????????????????????????????+ | | ??????????????????????????????????????????# | | ??????????????????????????????????????????# | | ??????????????????????????????????????????# | | ??????????????????????????????????????????# | | ??????????????????????????????????????????# | | ??????????????????????????????????????????+ | | ??????????????????????????????????????????# | | ??????????????????????????????????????????# | | ????????????????####?#############++####### | | ??????????????### +?+ | | ??????????????#"# +?+ | | ??????????????#" #?# | | ??????????????#" #?# ################## | | ??????????????#" #?# #????????????????? | | ??????????????#"# #?# #????????????????? | | ????????????????# #?# #????????????????? | | ????????????????#s #?# #????????????????? | | ????????????????#s #?# #????????????????? | | ??????????????###s #?# #????????????????? | | ??????????????# #?# #????????????????? | | ??????????????+ #?# #????????????????? | | ?????????????## @#?# #????????????????? | | ??????????????### #?# #????????????????? | | ????????????????# #?# #????????????????? | | ????????????????#ss### #????????????????? | | ????????????????# #????????????????? | | ????????????????# #????????????????? | | ????????????????###### #????????????????? | | ?????????????????????# #????????????????? | | ?????????????????????# #????????????????? | | ????????????+????????# #????????????????? | | ????????????????????? #????????????????? | | ????????????????????? #????????????????? | | ???????????????????? #????????????????? | | ????????????????????####+#????????????????? | | ??????????????????????????????????????????? | | ??????????????????????????????????????????? | | ??????????????????????????????????????????? | | ??????????????????????????????????????????? | | ??????????????????????????????????????????? | | ??????????????????????????????????????????? | | ??????????????????????????????????????????? | | ??????????????????????????????????????????? | | ??????????????????????????????????????????? | | | | | +----------------------------------------------------+ Best States ------------- Heat Dissipation 34 Energy Generation 16 Energy Capacity 290 Matter Stores 300 Matter Capacity 300 Sight Range 16 Terrain Scan Density 10 Additional Mass Support 6 Armor Coverage 300 Propulsion Shielding 66 Evasion (%) 64 Recoil Reduction 2 Offensive Hacking 10 Defensive Hacking 10 Item Schematics ----------------- None Robot Schematics ------------------ None Fabricated ------------ Nothing Alien Tech Used ----------------- None Achievements -------------- None Challenges ------------ None Game ------ Seed MetafieldShrapnelStabilizer Manual? 0 Play Time 00:31:38 Cumulative 15.8 hours Start 2024.05.21 @ 14:55:14 End 2024.05.21 @ 15:23:25 Sessions 1 Manual Loads 0 Difficulty Rogue Special Mode None Game No. 35 Rogue 35 Adventurer 0 Explorer 0 Win Type - Total 0 Types 0/0/0/0/0/0/0/0/0 Lore% 24 Gallery% 20 Achievement% 19 Wizard Run 0 Options --------- Layout 1 ASCII 0 Keyboard 0 Movement Mouse Keybinds 0 Fullscreen 1 Font 24/Smallcaps Map View 50x35 Zoom Use 0% Tactical HUD 1 Map Filters NONE Filters NONE Steam 1 RUN: 0abc8f0f-bf36-4519-9aa1-5a77b029eae6